fUSD/lending_fUSD_20250207
["ID","MTS","AMOUNT","RATE_DAILY","PERIOD"]
[352133624,1738956698912,-513.84,0.00017945,2]
[352133625,1738956698922,-1712.36,0.00017945,2]
[352133626,1738956699101,-1938.63,0.00017945,2]
[352133627,1738956699110,-1697.97,0.00017945,2]
[352133628,1738956699119,-336.6198275,0.00017945,2]
[352133629,1738956699129,-1225.54,0.00017945,2]
[352133630,1738956699138,-500.0,0.00017945,2]
[352133631,1738956699148,-676.85,0.00017945,2]
[352133632,1738956699158,-500.0,0.00017945,2]
[352133633,1738956699167,-1685.31,0.00017945,60]
[352133634,1738956699177,-541.77,0.00017945,2]
[352133635,1738956699186,-667.78,0.00017945,2]
[352133636,1738956699195,-573.49,0.00017945,2]
[352133637,1738956699205,-1308.11,0.00017945,2]
[352133638,1738956699215,-1722.81,0.00017945,2]
[352133639,1738956699224,-500.0,0.00017945,2]
[352133640,1738956699234,-925.93,0.00017945,2]
[352133641,1738956699243,-1095.49,0.00017945,2]
[352133642,1738956699253,-500.0,0.00017945,2]
[352133643,1738956699263,-649.37,0.00017945,2]
[352133644,1738956699272,-776.83,0.00017945,2]
[352133645,1738956699281,-1010.35,0.00017945,2]
[352133646,1738956699291,-1263.77,0.00017945,2]
[352133647,1738956699300,-500.0,0.00017945,2]
[352133648,1738956699311,-1637.13,0.00017945,2]
[352133649,1738956699321,-694.17,0.00017945,2]
[352133650,1738956699330,-342.87,0.00017945,2]
[352133651,1738956699340,-730.01,0.00017945,2]
[352133652,1738956699350,-500.0,0.00017945,2]
[352133653,1738956699359,-1444.08,0.00017945,2]
[352133654,1738956699369,-500.0,0.00017945,2]
[352133655,1738956699381,-500.0,0.00017945,2]
[352133656,1738956699390,-500.0,0.00017945,2]
[352133657,1738956699399,-712.73,0.00017945,2]
[352133658,1738956699408,-500.0,0.00017945,2]
[352133659,1738956699418,-500.0,0.00017945,2]
[352133660,1738956699428,-500.0,0.00017945,2]
[352133661,1738956699438,-500.0,0.00017945,2]
[352133662,1738956699447,-500.0,0.00017945,2]
[352133663,1738956699457,-500.0,0.00017945,2]
[352133664,1738956699466,-1676.26,0.00017945,2]
[352133665,1738956699476,-500.0,0.00017945,2]
[352133666,1738956699485,-500.0,0.00017945,2]
[352133667,1738956699495,-500.0,0.00017945,2]
[352133668,1738956699504,-500.0,0.00017945,2]
[352133669,1738956699514,-500.0,0.00017945,2]
[352133670,1738956699524,-1138.99,0.00017945,2]
[352133671,1738956699533,-500.0,0.00017945,2]
[352133672,1738956699542,-500.0,0.00017945,2]
[352133673,1738956699552,-500.0,0.00017945,2]
[352133674,1738956699562,-500.0,0.00017945,2]
[352133675,1738956699572,-1316.0,0.00017945,2]
[352133676,1738956699586,-725.14,0.00017945,2]
[352133677,1738956699595,-1188.45,0.00017945,2]
[352133678,1738956699604,-516.4,0.00017945,2]
[352133679,1738956699614,-510.03,0.00017945,2]
[352133680,1738956699624,-500.0,0.00017945,2]
[352133681,1738956699634,-1472.92,0.00017945,2]
[352133682,1738956699644,-1412.12,0.00017945,2]
[352133683,1738956699654,-500.0,0.00017945,2]
[352133684,1738956699664,-529.81,0.00017945,2]
[352133685,1738956699673,-981.75,0.00017945,2]
[352133686,1738956699683,-520.02,0.00017945,2]
[352133687,1738956699692,-647.02,0.00017945,2]
[352133688,1738956699701,-1033.68,0.00017945,2]
[352133689,1738956699711,-522.48,0.00017945,2]
[352133690,1738956699720,-500.0,0.00017945,2]
[352133691,1738956699729,-662.32,0.00017945,2]
[352133692,1738956699739,-1353.23,0.00017945,2]
[352133693,1738956699749,-508.39,0.00017945,2]
[352133694,1738956699759,-1634.27,0.00017945,2]
[352133695,1738956699768,-500.0,0.00017945,2]
[352133696,1738956699778,-544.73,0.00017945,2]
[352133697,1738956699787,-529.48,0.00017945,2]
[352133698,1738956699796,-500.0,0.00017945,2]
[352133699,1738956699805,-939.05,0.00017945,2]
[352133700,1738956699815,-1428.68,0.00017945,2]
[352133701,1738956699825,-690.69,0.00017945,2]
[352133702,1738956699835,-500.0,0.00017945,2]
[352133703,1738956699844,-1130.37,0.00017945,2]
[352133704,1738956699854,-500.0,0.00017945,2]
[352133705,1738956699863,-1381.35,0.00017945,2]
[352133706,1738956699873,-580.24,0.00017945,2]
[352133707,1738956699883,-1489.45,0.00017945,2]
[352133708,1738956699892,-644.30758081,0.00017945,2]
[352133709,1738956699902,-1435.35,0.00017945,2]
[352133710,1738956699911,-1168.21,0.00017945,2]
[352133711,1738956699920,-500.0,0.00017945,2]
[352133712,1738956699930,-3966.24,0.00017945,2]
[352133713,1738956699947,-648.0,0.00017945,2]
[352133714,1738956699961,-1165.23,0.00017945,2]
[352133715,1738956699970,-500.0,0.00017945,2]
[352133716,1738956699980,-2615.59,0.00017945,2]
[352133717,1738956699990,-830.58,0.00017945,2]
[352133718,1738956699999,-2112.58,0.00017945,2]
[352133719,1738956700008,-1540.26,0.00017945,2]
[352133720,1738956700017,-1387.93,0.00017945,2]
[352133721,1738956700028,-1751.47,0.00017945,2]
[352133722,1738956700039,-2850.19,0.00017945,2]
[352133723,1738956700049,-603.96,0.00017945,2]
[352133724,1738956700059,-500.0,0.00017945,2]
[352133725,1738956700068,-2172.91,0.00017945,2]
[352133726,1738956700078,-1670.17,0.00017945,2]
[352133727,1738956700087,-500.0,0.00017945,2]
[352133728,1738956700097,-1335.8,0.00017945,2]
[352133729,1738956700107,-1813.96,0.00017945,2]
[352133730,1738956700116,-500.0,0.00017945,2]
[352133731,1738956700125,-1815.88,0.00017945,2]
[352133732,1738956700134,-1078.85,0.00017945,2]
[352133733,1738956700144,-500.0,0.00017945,2]
[352133734,1738956700152,-650.97,0.00017945,2]
[352133735,1738956700162,-1933.83,0.00017945,2]
[352133736,1738956700171,-1477.72,0.00017945,2]
[352133737,1738956700181,-520.8,0.00017945,2]
[352133738,1738956700190,-1313.81,0.00017945,2]
[352133739,1738956700200,-618.23,0.00017945,2]
[352133740,1738956700209,-500.0,0.00017945,2]
[352133741,1738956700218,-2982.88,0.00017945,2]
[352133742,1738956700227,-500.0,0.00017945,2]
[352133743,1738956700238,-500.0,0.00017945,2]
[352133744,1738956700248,-523.72,0.00017945,2]
[352133745,1738956700258,-1656.24,0.00017945,2]
[352133746,1738956700267,-3275.06,0.00017945,2]
[352133747,1738956700277,-1882.91,0.00017945,2]
[352133748,1738956700286,-1686.85,0.00017945,2]
[352133749,1738956700295,-972.36,0.00017945,2]
[352133750,1738956700306,-993.82,0.00017945,2]
[352133751,1738956700315,-2377.09,0.00017945,2]
[352133752,1738956700325,-1338.75,0.00017945,2]
[352133753,1738956700334,-1209.72,0.00017945,2]
[352133754,1738956700343,-3708.92,0.00017945,2]
[352133755,1738956700352,-2135.6,0.00017945,2]
[352133756,1738956700362,-2799.93,0.00017945,2]
[352133757,1738956700371,-2642.08,0.00017945,2]
[352133758,1738956700380,-928.35,0.00017945,2]
[352133759,1738956700389,-2130.68,0.00017945,2]
[352133760,1738956700399,-2968.87,0.00017945,2]
[352133761,1738956700408,-225.22,0.00017945,2]
[352133762,1738956700418,-4265.56,0.00017945,2]
[352133763,1738956700428,-1264.49,0.00017945,2]
[352133764,1738956700438,-2756.51,0.00017945,2]
[352133765,1738956700447,-1952.36,0.00017945,2]
[352133766,1738956700457,-2675.04,0.00017945,2]
[352133767,1738956700466,-1643.06,0.00017945,2]
[352133768,1738956700476,-2535.68,0.00017945,2]
[352133769,1738956700485,-2559.02,0.00017945,2]
[352133770,1738956700495,-982.62,0.00017945,2]
[352133771,1738956700505,-1048.24,0.00017945,2]
[352133772,1738956700515,-652.99,0.00017945,2]
[352133773,1738956700525,-3904.04,0.00017945,2]
[352133774,1738956700534,-1687.81,0.00017945,2]
[352133775,1738956700543,-1846.01,0.00017945,2]
[352133776,1738956700553,-8054.78,0.00017945,2]
[352133777,1738956700563,-2697.16,0.00017945,2]
[352133778,1738956700573,-1537.43,0.00017945,2]
[352133779,1738956700586,-4171.0,0.00017945,2]
[352133780,1738956700596,-500.0,0.00017945,2]
[352133781,1738956700605,-4545.2,0.00017945,2]
[352133782,1738956700615,-871.03,0.00017945,2]
[352133783,1738956700625,-1100.92,0.00017945,2]
[352133784,1738956700635,-4717.88,0.00017945,2]
[352133785,1738956700644,-1186.63,0.00017945,2]
[352133786,1738956700654,-778.34,0.00017945,2]
[352133787,1738956700663,-500.0,0.00017945,2]
[352133788,1738956700673,-6146.82,0.00017945,2]
[352133789,1738956700682,-1352.28,0.00017945,2]
[352133790,1738956700691,-2922.19,0.00017945,2]
[352133791,1738956700700,-500.0,0.00017945,2]
[352133792,1738956700709,-823.38,0.00017945,2]
[352133793,1738956700719,-2029.74,0.00017945,2]
[352133794,1738956700728,-500.0,0.00017945,2]
[352133795,1738956700737,-500.0,0.00017945,2]
[352133796,1738956700747,-4297.56,0.00017945,2]
[352133797,1738956700756,-4260.15,0.00017945,2]
[352133798,1738956700766,-1150.5,0.00017945,2]
[352133799,1738956700775,-4984.09,0.00017945,2]
[352133800,1738956700784,-4214.42,0.00017945,2]
[352133801,1738956700793,-1455.84,0.00017945,2]
[352133802,1738956700803,-1559.73,0.00017945,2]
[352133803,1738956700813,-1241.92,0.00017945,2]
[352133804,1738956700822,-2692.24,0.00017945,2]
[352133805,1738956700831,-500.0,0.00017945,2]
[352133806,1738956700841,-630.57,0.00017945,2]
[352133807,1738956700850,-1067.17,0.00017945,2]
[352133808,1738956700860,-881.73,0.00017945,2]
[352133809,1738956700869,-3307.35,0.00017945,2]
[352133810,1738956700878,-2646.43,0.00017945,2]
[352133811,1738956700888,-500.0,0.00017945,2]
[352133812,1738956700897,-742.64,0.00017945,2]
[352133813,1738956700907,-3381.29,0.00017945,2]
[352133814,1738956700916,-548.98,0.00017945,2]
[352133815,1738956700926,-797.92,0.00017945,2]
[352133816,1738956700935,-3042.11,0.00017945,2]
[352133817,1738956700945,-553.95,0.00017945,2]
[352133818,1738956700953,-527.06,0.00017945,2]
[352133819,1738956700962,-500.0,0.00017945,2]
[352133820,1738956700971,-1555.24,0.00017945,2]
[352133821,1738956700980,-3666.13,0.00017945,2]
[352133822,1738956700990,-1049.9,0.00017945,2]
[352133823,1738956700999,-174.608383,0.0001798,2]
[352133824,1738956701008,-1041.0160242,0.00017988,2]
[352133825,1738956701017,-431.0,0.0001799,2]
[352133826,1738956701026,-10000.0,0.00017997,4]
[352133827,1738956701036,-22618.40473781,0.00018,2]
[352133828,1738956701044,-770498.95268706,0.00018,5]
[352133829,1738956701054,-345.25801605,0.00018,2]
[352133830,1738956701069,-723.04,0.00018,2]
[352133831,1738956701078,-800.0,0.00018,4]
[352133832,1738956701088,-965.2826833,0.00018,19]
[352133833,1738956701098,-73761.81880431,0.00018,2]
[352133834,1738956701107,-252.926132,0.00018,2]
[352133835,1738956701117,-252.926132,0.00018,2]
[352133836,1738956701127,-151.0,0.00018,2]
[352133837,1738956701136,-272.473505,0.00018,2]
[352133838,1738956701146,-272.473505,0.00018,2]
[352133839,1738956701156,-297.270131,0.00018,2]
[352133840,1738956701165,-151.0,0.00018,2]
[352133841,1738956701174,-151.0,0.00018,2]
[352133842,1738956701184,-200.0,0.00018009,2]
[352133843,1738956701194,-200.0,0.00018009,2]
[352133844,1738956701204,-200.0,0.00018009,2]
[352133845,1738956701214,-200.0,0.00018009,2]
[352133846,1738956701225,-200.0,0.00018009,2]
[352133847,1738956701235,-200.0,0.00018009,2]
[352133848,1738956701244,-200.0,0.00018009,2]
[352133849,1738956701254,-200.0,0.00018009,2]
[352133850,1738956701264,-200.0,0.00018009,2]
[352133851,1738956701274,-200.0,0.00018009,2]
[352133852,1738956701283,-200.0,0.00018009,2]
[352133853,1738956701293,-200.0,0.00018009,2]
[352133854,1738956701303,-200.0,0.00018009,2]
[352133855,1738956701318,-200.0,0.00018009,2]
[352133856,1738956701327,-200.0,0.00018009,2]
[352133857,1738956701337,-200.0,0.00018009,2]
[352133858,1738956701346,-501.0,0.00018009,2]
[352133859,1738956701356,-200.0,0.00018009,2]
[352133860,1738956701366,-200.0,0.00018009,2]
[352133861,1738956701375,-200.0,0.00018009,2]
[352133862,1738956701385,-200.0,0.00018009,2]
[352133863,1738956701394,-200.0,0.00018009,2]
[352133864,1738956701404,-200.0,0.00018009,2]
[352133865,1738956701413,-200.0,0.00018009,2]
[352133866,1738956701422,-201.0,0.00018009,2]
[352133867,1738956701432,-500.0,0.00018009,2]
[352133868,1738956701441,-500.0,0.00018009,2]
[352133869,1738956701514,-275.0,0.00018009,2]
[352133870,1738956701524,-207.0,0.00018009,2]
[352133871,1738956701534,-2879.2221477,0.0001807,2]
[352133872,1738956701544,-588.5080345,0.0001807,2]
[352133873,1738956701561,-500.27,0.0001808,2]
[352133874,1738956701571,-500.0,0.0001808,2]
[352133875,1738956701584,-500.0,0.0001808,2]
[352133876,1738956701593,-500.0,0.0001808,2]
[352133877,1738956701602,-500.0,0.0001808,2]
[352133878,1738956701611,-160.24,0.0001808,2]
[352133879,1738956701621,-500.0,0.0001808,2]
[352133880,1738956701631,-500.0,0.0001808,2]
[352133881,1738956701640,-500.0,0.0001808,2]
[352133882,1738956701650,-500.0,0.0001808,2]
[352133883,1738956701661,-500.0,0.0001808,2]
[352133884,1738956701670,-500.0,0.0001808,2]
[352133885,1738956701679,-500.0,0.0001808,2]
[352133886,1738956701689,-500.0,0.0001808,2]
[352133887,1738956701698,-500.0,0.0001808,2]
[352133888,1738956701707,-540.67,0.0001808,2]
[352133889,1738956701718,-557.1,0.0001808,2]
[352133890,1738956701728,-500.0,0.0001808,2]
[352133891,1738956701737,-500.0,0.0001808,2]
[352133892,1738956701746,-500.0,0.0001808,2]
[352133893,1738956701757,-500.0,0.0001808,2]
[352133894,1738956701767,-530.71,0.0001808,2]
[352133895,1738956701776,-2942.64,0.0001808,2]
[352133896,1738956701785,-1743.62,0.0001808,2]
[352133897,1738956701795,-720.06,0.0001808,2]
[352133898,1738956701805,-5046.81,0.0001808,2]
[352133899,1738956701817,-1994.07,0.0001808,2]
[352133900,1738956701827,-1138.25,0.0001808,2]
[352133901,1738956701836,-500.0,0.0001808,2]
[352133902,1738956701845,-3516.18,0.0001808,2]
[352133903,1738956701855,-500.0,0.0001808,2]
[352133904,1738956701864,-500.0,0.0001808,2]
[352133905,1738956701874,-500.0,0.0001808,2]
[352133906,1738956701883,-1024.51,0.0001808,2]
[352133907,1738956701893,-2173.49,0.0001808,2]
[352133908,1738956701903,-612.99,0.0001808,2]
[352133909,1738956701912,-1229.36,0.0001808,2]
[352133910,1738956701922,-2227.07,0.0001808,2]
[352133911,1738956701932,-2301.73,0.0001808,2]
[352133912,1738956701942,-1183.89,0.0001808,2]
[352133913,1738956701951,-518.71,0.0001808,2]
[352133914,1738956701961,-2133.71,0.0001808,2]
[352133915,1738956701971,-500.0,0.0001808,2]
[352133916,1738956701981,-2304.96,0.0001808,2]
[352133917,1738956701990,-4101.49,0.0001808,2]
[352133918,1738956702000,-629.73,0.0001808,2]
[352133919,1738956702010,-10904.08,0.0001808,2]
[352133920,1738956702020,-1990.52,0.0001808,2]
[352133921,1738956702030,-1994.74,0.0001808,2]
[352133922,1738956702039,-500.0,0.0001808,2]
[352133923,1738956702049,-2018.74,0.0001808,2]
[352133924,1738956702059,-500.0,0.0001808,2]
[352133925,1738956702069,-500.0,0.0001808,2]
[352133926,1738956702078,-500.0,0.0001808,2]
[352133927,1738956702088,-500.0,0.0001808,2]
[352133928,1738956702097,-1695.7,0.0001808,2]
[352133929,1738956702107,-3966.69,0.0001808,2]
[352133930,1738956702117,-662.29,0.0001808,2]
[352133931,1738956702127,-1062.51,0.00018081,2]
[352133932,1738956702136,-1219.59,0.00018081,2]
[352133933,1738956702146,-857.35,0.00018081,2]
[352133934,1738956702156,-526.56,0.00018081,2]
[352133935,1738956702166,-500.0,0.00018081,2]
[352133936,1738956702175,-547.58,0.00018081,2]
[352133937,1738956702184,-500.0,0.00018081,2]
[352133938,1738956702194,-500.0,0.00018081,2]
[352133939,1738956702204,-1136.81,0.00018081,2]
[352133940,1738956702213,-533.79,0.00018081,2]
[352133941,1738956702223,-500.0,0.00018081,2]
[352133942,1738956702232,-500.0,0.00018081,2]
[352133943,1738956702242,-1186.33,0.00018081,2]
[352133944,1738956702251,-500.0,0.00018081,2]
[352133945,1738956702260,-529.03,0.00018081,2]
[352133946,1738956702270,-1230.22,0.00018081,2]
[352133947,1738956702280,-500.0,0.00018081,2]
[352133948,1738956702290,-1245.85,0.00018081,2]
[352133949,1738956702299,-500.0,0.00018081,2]
[352133950,1738956702310,-1446.41,0.00018081,2]
[352133951,1738956702320,-565.43,0.00018081,2]
[352133952,1738956702329,-564.24,0.00018081,2]
[352133953,1738956702339,-500.0,0.00018081,2]
[352133954,1738956702349,-550.96,0.00018081,2]
[352133955,1738956702358,-1579.64,0.00018081,2]
[352133956,1738956702368,-520.2,0.00018081,2]
[352133957,1738956702377,-1605.34,0.00018081,2]
[352133958,1738956702387,-1579.05,0.00018081,2]
[352133959,1738956702397,-551.37,0.00018081,2]
[352133960,1738956702407,-601.14,0.00018081,2]
[352133961,1738956702417,-1184.1,0.00018081,2]
[352133962,1738956702427,-678.58,0.00018081,2]
[352133963,1738956702437,-515.45,0.00018081,2]
[352133964,1738956702447,-521.99,0.00018081,2]
[352133965,1738956702457,-2651.33,0.00018081,2]
[352133966,1738956702467,-615.95,0.00018081,2]
[352133967,1738956702477,-500.0,0.00018081,2]
[352133968,1738956702487,-467.230511,0.00018082,2]
[352133969,1738956702496,-467.230511,0.00018082,2]
[352133970,1738956702507,-462.25,0.00018082,2]
[352133971,1738956702516,-462.25,0.00018082,2]
[352133972,1738956702525,-500.0,0.00018082,2]
[352133973,1738956702535,-500.0,0.00018082,2]
[352133974,1738956702545,-757.978893,0.00018082,2]
[352133975,1738956702554,-757.978893,0.00018082,2]
[352133976,1738956702567,-152.704996,0.00018082,2]
[352133977,1738956702580,-152.704996,0.00018082,2]
[352133978,1738956702589,-500.0,0.00018082,2]
[352133979,1738956702599,-500.0,0.00018082,2]
[352133980,1738956702608,-659.78,0.00018082,2]
[352133981,1738956702618,-597.96308011,0.00018082,2]
[352133982,1738956702628,-500.0,0.00018082,2]
[352133983,1738956702637,-500.0,0.00018082,2]
[352133984,1738956702647,-500.0,0.00018082,2]
[352133985,1738956702657,-311.9410435,0.00018082,2]
[352133986,1738956702666,-500.0,0.00018082,2]
[352133987,1738956702676,-513.84,0.00018082,2]
[352133988,1738956702685,-1712.36,0.00018082,2]
[352133989,1738956702695,-1938.63,0.00018082,2]
[352133990,1738956702704,-1697.97,0.00018082,2]
[352133991,1738956702713,-1225.54,0.00018082,2]
[352133992,1738956702722,-500.0,0.00018082,2]
[352133993,1738956702732,-676.85,0.00018082,2]
[352133994,1738956702742,-500.0,0.00018082,2]
[352133995,1738956702751,-1685.31,0.00018082,60]
[352133996,1738956702761,-541.77,0.00018082,2]
[352133997,1738956702770,-667.78,0.00018082,2]
[352133998,1738956702780,-573.49,0.00018082,2]
[352133999,1738956702789,-1308.11,0.00018082,2]
[352134000,1738956702798,-1722.81,0.00018082,2]
[352134001,1738956702809,-500.0,0.00018082,2]
[352134002,1738956702819,-925.93,0.00018082,2]
[352134003,1738956702829,-1095.49,0.00018082,2]
[352134004,1738956702839,-500.0,0.00018082,2]
[352134005,1738956702849,-649.37,0.00018082,2]
[352134006,1738956702859,-776.83,0.00018082,2]
[352134007,1738956702868,-1010.35,0.00018082,2]
[352134008,1738956702878,-1263.77,0.00018082,2]
[352134009,1738956702888,-500.0,0.00018082,2]
[352134010,1738956702898,-1637.13,0.00018082,2]
[352134011,1738956702908,-694.17,0.00018082,2]
[352134012,1738956702917,-730.01,0.00018082,2]
[352134013,1738956702927,-500.0,0.00018082,2]
[352134014,1738956702936,-1444.08,0.00018082,2]
[352134015,1738956702945,-500.0,0.00018082,2]
[352134016,1738956702955,-500.0,0.00018082,2]
[352134017,1738956702964,-500.0,0.00018082,2]
[352134018,1738956702973,-712.73,0.00018082,2]
[352134019,1738956702982,-500.0,0.00018082,2]
[352134020,1738956702991,-1000.0,0.00018082,4]
[352134021,1738956703011,-500.0,0.00018082,2]
[352134022,1738956703023,-500.0,0.00018082,2]
[352134023,1738956703032,-592.38,0.00018082,2]
[352134024,1738956703041,-500.0,0.00018082,2]
[352134025,1738956703050,-500.0,0.00018082,2]
[352134026,1738956703060,-1676.26,0.00018082,2]
[352134027,1738956703070,-500.0,0.00018082,2]
[352134028,1738956703079,-500.0,0.00018082,2]
[352134029,1738956703089,-500.0,0.00018082,2]
[352134030,1738956703098,-500.0,0.00018082,2]
[352134031,1738956703107,-500.0,0.00018082,2]
[352134032,1738956703116,-1138.99,0.00018082,2]
[352134033,1738956703126,-500.0,0.00018082,2]
[352134034,1738956703135,-500.0,0.00018082,2]
[352134035,1738956703144,-500.0,0.00018082,2]
[352134036,1738956703153,-500.0,0.00018082,2]
[352134037,1738956703163,-1316.0,0.00018082,2]
[352134038,1738956703172,-725.14,0.00018082,2]
[352134039,1738956703182,-1188.45,0.00018082,2]
[352134040,1738956703191,-516.4,0.00018082,2]
[352134041,1738956703200,-510.03,0.00018082,2]
[352134042,1738956703209,-500.0,0.00018082,2]
[352134043,1738956703219,-1472.92,0.00018082,2]
[352134044,1738956703228,-1412.12,0.00018082,2]
[352134045,1738956703238,-500.0,0.00018082,2]
[352134046,1738956703247,-529.81,0.00018082,2]
[352134047,1738956703256,-981.75,0.00018082,2]
[352134048,1738956703266,-520.02,0.00018082,2]
[352134049,1738956703276,-647.02,0.00018082,2]
[352134050,1738956703286,-1033.68,0.00018082,2]
[352134051,1738956703296,-522.48,0.00018082,2]
[352134052,1738956703306,-500.0,0.00018082,2]
[352134053,1738956703317,-662.32,0.00018082,2]
[352134054,1738956703327,-1353.23,0.00018082,2]
[352134055,1738956703336,-508.39,0.00018082,2]
[352134056,1738956703346,-1634.27,0.00018082,2]
[352134057,1738956703356,-500.0,0.00018082,2]
[352134058,1738956703366,-544.73,0.00018082,2]
[352134059,1738956703375,-529.48,0.00018082,2]
[352134060,1738956703385,-500.0,0.00018082,2]
[352134061,1738956703397,-939.05,0.00018082,2]
[352134062,1738956703406,-1428.68,0.00018082,2]
[352134063,1738956703417,-500.0,0.00018082,2]
[352134064,1738956703427,-690.69,0.00018082,2]
[352134065,1738956703437,-1130.37,0.00018082,2]
[352134066,1738956703447,-500.0,0.00018082,2]
[352134067,1738956703457,-1381.35,0.00018082,2]
[352134068,1738956703468,-580.24,0.00018082,2]
[352134069,1738956703478,-1489.45,0.00018082,2]
[352134070,1738956703487,-1435.35,0.00018082,2]
[352134071,1738956703497,-1168.21,0.00018082,2]
[352134072,1738956703506,-500.0,0.00018082,2]
[352134073,1738956703517,-3966.24,0.00018082,2]
[352134074,1738956703527,-648.0,0.00018082,2]
[352134075,1738956703537,-1165.23,0.00018082,2]
[352134076,1738956703547,-500.0,0.00018082,2]
[352134077,1738956703557,-2615.59,0.00018082,2]
[352134078,1738956703569,-830.58,0.00018082,2]
[352134079,1738956703578,-2112.58,0.00018082,2]
[352134080,1738956703591,-1540.26,0.00018082,2]
[352134081,1738956703601,-1387.93,0.00018082,2]
[352134082,1738956703610,-1751.47,0.00018082,2]
[352134083,1738956703620,-2850.19,0.00018082,2]
[352134084,1738956703630,-603.96,0.00018082,2]
[352134085,1738956703640,-500.0,0.00018082,2]
[352134086,1738956703650,-2172.91,0.00018082,2]
[352134087,1738956703663,-1670.17,0.00018082,2]
[352134088,1738956703674,-500.0,0.00018082,2]
[352134089,1738956703684,-1335.8,0.00018082,2]
[352134090,1738956703694,-1813.96,0.00018082,2]
[352134091,1738956703703,-500.0,0.00018082,2]
[352134092,1738956703713,-1815.88,0.00018082,2]
[352134093,1738956703723,-1078.85,0.00018082,2]
[352134094,1738956703732,-500.0,0.00018082,2]
[352134095,1738956703742,-650.97,0.00018082,2]
[352134096,1738956703752,-1933.83,0.00018082,2]
[352134097,1738956703762,-1477.72,0.00018082,2]
[352134098,1738956703772,-520.8,0.00018082,2]
[352134099,1738956703782,-1313.81,0.00018082,2]
[352134100,1738956703793,-618.23,0.00018082,2]
[352134101,1738956703803,-500.0,0.00018082,2]
[352134102,1738956703814,-2982.88,0.00018082,2]
[352134103,1738956703823,-500.0,0.00018082,2]
[352134104,1738956703834,-523.72,0.00018082,2]
[352134105,1738956703844,-500.0,0.00018082,2]
[352134106,1738956703854,-1656.24,0.00018082,2]
[352134107,1738956703864,-3275.06,0.00018082,2]
[352134108,1738956703873,-1882.91,0.00018082,2]
[352134109,1738956703883,-1686.85,0.00018082,2]
[352134110,1738956703893,-972.36,0.00018082,2]
[352134111,1738956703903,-993.82,0.00018082,2]
[352134112,1738956703913,-2377.09,0.00018082,2]
[352134113,1738956703922,-1338.75,0.00018082,2]
[352134114,1738956703932,-1209.72,0.00018082,2]
[352134115,1738956703941,-3708.92,0.00018082,2]
[352134116,1738956703951,-2135.6,0.00018082,2]
[352134117,1738956703961,-2799.93,0.00018082,2]
[352134118,1738956703971,-2642.08,0.00018082,2]
[352134119,1738956703980,-928.35,0.00018082,2]
[352134120,1738956703990,-2130.68,0.00018082,2]
[352134121,1738956704000,-2968.87,0.00018082,2]
[352134122,1738956704010,-4265.56,0.00018082,2]
[352134123,1738956704019,-151.0,0.00018082,2]